bitfinex-derivatives/quotes_BTCF0:USTF0_20250915
["timestamp","ask_amount","ask_price","bid_price","bid_amount"]
[1757948678393,0.63772919,114700.0,114690.0,0.04401694]
[1757948678604,0.63772919,114700.0,114690.0,0.84973694]
[1757948678997,0.63772919,114700.0,114690.0,0.86297694]
[1757948679595,0.08571022,114700.0,114690.0,0.86297694]
[1757948680494,0.09870022,114700.0,114690.0,0.86297694]
[1757948681203,0.08571022,114700.0,114690.0,0.86297694]
[1757948682201,0.09870022,114700.0,114690.0,0.86297694]
[1757948682400,0.09870022,114700.0,114690.0,0.84973694]
[1757948682897,0.63772919,114700.0,114690.0,0.04401694]
[1757948683101,0.88772919,114700.0,114690.0,0.04401694]
[1757948684299,0.88772919,114700.0,114690.0,0.02154694]
[1757948684506,2.06989668,114700.0,114690.0,0.02154694]
[1757948685205,2.02296218,114700.0,114690.0,0.02154694]
[1757948685410,2.06987385,114700.0,114690.0,0.02154694]
[1757948685704,2.06987385,114700.0,114690.0,0.001]
[1757948685905,2.02296218,114700.0,114690.0,0.001]
[1757948686411,2.06985762,114700.0,114690.0,0.001]
[1757948686906,2.02296218,114700.0,114690.0,0.001]
[1757948687404,2.06983913,114700.0,114690.0,0.001]
[1757948687795,1.76044656,114700.0,114690.0,0.001]
[1757948688301,2.56616656,114700.0,114690.0,0.001]
[1757948688800,1.76044656,114700.0,114690.0,0.001]
[1757948689010,2.22108776,114700.0,114690.0,0.02349]
[1757948689202,2.22108776,114700.0,114690.0,0.001]
[1757948690500,2.25231709,114700.0,114690.0,0.001]
[1757948690799,2.56620656,114700.0,114690.0,0.001]
[1757948691307,2.59743497,114700.0,114690.0,0.001]
[1757948692707,1.79167497,114700.0,114690.0,0.001]
[1757948693008,2.59743497,114700.0,114690.0,0.001]
[1757948694013,1.79167497,114700.0,114690.0,0.001]
[1757948694207,2.59743497,114700.0,114690.0,0.001]
[1757948694601,2.20547922,114700.0,114690.0,0.02246]
[1757948696312,2.20547922,114700.0,114690.0,0.001]
[1757948696910,2.55059802,114700.0,114690.0,0.001]
[1757948697110,2.51936961,114700.0,114690.0,0.001]
[1757948697706,2.55059802,114700.0,114690.0,0.001]
[1757948698014,2.51936961,114700.0,114690.0,0.001]
[1757948699810,1.82911155,114700.0,114690.0,0.001]
[1757948700212,2.17420989,114700.0,114690.0,0.001]
[1757948700709,1.9554383,114700.0,114690.0,0.001]
[1757948700912,0.03553,114690.0,114680.0,0.0001]
[1757948701115,0.03553,114680.0,114670.0,0.02164]
[1757948701311,1.22397321,114680.0,114670.0,0.02154]
[1757948701511,1.56907155,114680.0,114670.0,0.02154]
[1757948702515,1.57307155,114680.0,114670.0,0.02154]
[1757948702711,0.77597982,114680.0,114670.0,0.02154]
[1757948702912,1.58185982,114680.0,114670.0,0.02154]
[1757948705019,1.58685982,114680.0,114670.0,0.02254]
[1757948705517,0.78097982,114680.0,114670.0,0.02254]
[1757948705710,1.58681982,114680.0,114670.0,0.02254]
[1757948706517,0.78097982,114680.0,114670.0,0.02254]
[1757948706718,1.58681982,114680.0,114670.0,0.02254]
[1757948708521,0.78097982,114680.0,114670.0,0.02254]
[1757948708818,1.58681982,114680.0,114670.0,0.02254]
[1757948710214,1.58681982,114680.0,114670.0,0.001]
[1757948710914,1.61805174,114680.0,114670.0,0.001]
[1757948715429,0.03553,114670.0,114660.0,0.0001]
[1757948715629,0.03553,114670.0,114640.0,0.3608]
[1757948715630,0.03553,114660.0,114650.0,0.0001]
[1757948715826,0.03553,114650.0,114640.0,0.3609]
[1757948716033,0.03553,114640.0,114630.0,0.38244]
[1757948716327,1.20835155,114640.0,114630.0,0.02154]
[1757948718227,1.20735155,114640.0,114630.0,0.02154]
[1757948718427,1.20735155,114640.0,114630.0,0.02254]
[1757948718725,1.20735155,114640.0,114630.0,0.251]
[1757948719134,1.62304071,114640.0,114630.0,0.001]
[1757948719334,1.98384071,114640.0,114630.0,0.001]
[1757948719526,1.17796071,114640.0,114630.0,0.001]
[1757948719727,1.98388071,114640.0,114630.0,0.001]
[1757948720432,1.98392071,114640.0,114630.0,0.001]
[1757948720637,2.26515961,114640.0,114630.0,0.001]
[1757948721537,0.03553,114630.0,114620.0,0.0001]
[1757948721833,0.03553,114620.0,114610.0,0.38244]
[1757948722033,0.40247155,114620.0,114610.0,0.3608]
[1757948722536,1.20743155,114620.0,114610.0,0.3608]
[1757948722726,1.57686905,114620.0,114600.0,0.0001]
[1757948722932,0.38062834,114610.0,114600.0,0.38244]
[1757948723135,0.40247155,114610.0,114600.0,0.38234]
[1757948723337,0.40142515,114610.0,114600.0,0.38234]
[1757948723537,1.20742515,114610.0,114600.0,0.38234]
[1757948724239,1.20842515,114610.0,114600.0,0.38234]
[1757948725237,1.18662834,114610.0,114600.0,0.38334]
[1757948725636,1.20840398,114610.0,114600.0,0.38234]
[1757948725936,1.20840398,114610.0,114600.0,0.38334]
[1757948726132,0.40240398,114610.0,114600.0,0.38334]
[1757948726338,1.20844398,114610.0,114600.0,0.38334]
[1757948726839,0.40240398,114610.0,114600.0,0.38334]
[1757948727039,1.20844398,114610.0,114600.0,0.38334]
[1757948727340,1.20848398,114610.0,114600.0,0.38334]
[1757948728935,1.20852398,114610.0,114600.0,0.38334]
[1757948729133,0.40240398,114610.0,114600.0,0.38334]
[1757948729333,1.20852398,114610.0,114600.0,0.38334]
[1757948730433,0.40240398,114610.0,114600.0,0.38334]
[1757948730838,0.40240398,114610.0,114600.0,0.39682]
[1757948731438,0.40240398,114610.0,114600.0,0.38334]
[1757948731638,1.20856398,114610.0,114600.0,0.38334]
[1757948733336,1.20856398,114610.0,114600.0,0.001]
[1757948733337,1.55366232,114610.0,114600.0,0.001]
[1757948733641,1.20856398,114610.0,114600.0,0.001]
[1757948734939,0.03484,114600.0,114590.0,0.38337]
[1757948735141,1.18609834,114600.0,114590.0,0.38327]
[1757948735446,0.37993834,114600.0,114590.0,0.38327]
[1757948736248,0.37893834,114600.0,114590.0,0.38327]
[1757948737342,0.45008599,114600.0,114590.0,0.38327]
[1757948737550,0.45108599,114600.0,114590.0,0.39675]
[1757948737749,0.45108599,114600.0,114590.0,0.38327]
[1757948738248,0.03484,114590.0,114580.0,0.40405058]
[1757948738543,1.18613834,114590.0,114580.0,0.40395058]
[1757948738750,0.03484,114590.0,114580.0,0.40395058]
[1757948738951,1.18613834,114590.0,114580.0,0.40395058]
[1757948739446,1.18713834,114590.0,114580.0,0.41743058]
[1757948739644,1.20903296,114590.0,114580.0,0.39675]
[1757948740441,0.86397462,114590.0,114580.0,0.39675]
[1757948740650,1.20907296,114590.0,114580.0,0.39675]
[1757948741146,1.20907296,114590.0,114580.0,0.39775]
[1757948741847,0.40283296,114590.0,114580.0,0.39775]
[1757948742046,1.20907296,114590.0,114580.0,0.39775]
[1757948742448,0.40283296,114590.0,114580.0,0.39775]
[1757948742746,1.20907296,114590.0,114580.0,0.39775]
[1757948744043,0.40283296,114590.0,114580.0,0.39775]
[1757948744250,0.85075462,114590.0,114580.0,0.64775]
[1757948745250,0.04451462,114590.0,114580.0,0.64675]
[1757948745446,0.39061296,114590.0,114580.0,0.64775]
[1757948746247,0.02389462,114590.0,114580.0,1.79908834]
[1757948746450,0.02389462,114590.0,114580.0,2.12908834]
[1757948747144,0.02389462,114590.0,114580.0,2.21633284]
[1757948747339,0.002,114590.0,114580.0,2.21633284]
[1757948747545,0.001,114590.0,114580.0,2.21633284]
[1757948747751,0.0001,114600.0,114590.0,0.03595]
[1757948747950,0.0177563,114610.0,114600.0,0.03595]
[1757948748149,0.0177563,114610.0,114600.0,0.39675]
[1757948748452,0.38447464,114610.0,114600.0,1.20299]
[1757948748753,0.38482458,114610.0,114600.0,1.20299]
[1757948748949,0.40644458,114610.0,114600.0,1.20299]
[1757948749454,0.39068828,114610.0,114600.0,1.20299]
[1757948749653,0.02396994,114610.0,114600.0,1.20299]
[1757948749854,0.02396994,114610.0,114600.0,1.50299]
[1757948750550,0.02696994,114610.0,114600.0,1.50399]
[1757948750750,0.02696994,114610.0,114600.0,0.48775]
[1757948750945,0.04858994,114610.0,114600.0,1.29399]
[1757948751155,0.37206828,114610.0,114600.0,1.29399]
[1757948751557,0.39368828,114610.0,114600.0,1.29395]
[1757948751959,0.04858994,114610.0,114600.0,0.48775]
[1757948752159,0.39368828,114610.0,114600.0,1.29415]
[1757948753062,0.39368828,114610.0,114600.0,0.48775]
[1757948753362,0.39368828,114610.0,114600.0,1.29415]
[1757948753663,0.39368828,114610.0,114600.0,0.48775]
[1757948753863,0.39368828,114610.0,114600.0,1.29407]
[1757948754168,0.39368828,114610.0,114600.0,0.48775]
[1757948754356,0.39368828,114610.0,114600.0,1.29407]
[1757948755355,0.39368828,114610.0,114600.0,1.29395]
[1757948755559,0.39368828,114610.0,114600.0,0.39775]
[1757948755560,0.40684828,114610.0,114600.0,0.39775]
[1757948755758,1.00194662,114610.0,114600.0,0.38427]
[1757948755960,0.68808718,114610.0,114600.0,0.38427]
[1757948757265,0.68808718,114610.0,114600.0,0.38427]
[1757948757764,0.32982884,114610.0,114600.0,0.39723]
[1757948758067,0.68886718,114610.0,114600.0,0.39723]
[1757948758269,0.65762828,114610.0,114600.0,0.39723]
[1757948758470,0.65762828,114610.0,114600.0,0.38427]
[1757948760069,0.39368828,114610.0,114600.0,0.39723]
[1757948760658,0.39368828,114610.0,114600.0,1.20599]
[1757948760659,0.02696994,114610.0,114600.0,1.20599]
[1757948761665,0.39444828,114610.0,114600.0,1.20599]
[1757948761875,0.3948577,114610.0,114600.0,1.20599]
[1757948763276,0.3948577,114610.0,114600.0,0.39723]
[1757948763476,0.3948577,114610.0,114600.0,1.20635]
[1757948764483,0.3948577,114610.0,114600.0,1.55185776]
[1757948764674,0.3724777,114610.0,114600.0,1.55185776]
[1757948765380,0.35050776,114610.0,114600.0,1.55185776]
[1757948765772,0.37288776,114610.0,114600.0,0.74273776]
[1757948765977,0.37288776,114610.0,114600.0,1.20587]
[1757948766670,0.37288776,114610.0,114600.0,1.20575]
[1757948766977,0.75424209,114610.0,114600.0,0.38427]
[1757948767173,1.00424209,114610.0,114600.0,0.02347]
[1757948768177,0.65873433,114610.0,114600.0,0.03643]
[1757948768674,0.04928657,114610.0,114600.0,0.38193776]
[1757948768873,0.39479433,114610.0,114600.0,0.39723]
[1757948769082,0.02690657,114610.0,114600.0,1.08824552]
[1757948769372,0.005,114610.0,114600.0,0.74273776]
[1757948769573,0.35050776,114610.0,114600.0,0.74273776]
[1757948770473,0.37288776,114610.0,114600.0,0.39723]
[1757948770673,0.37288776,114610.0,114600.0,0.74273776]
[1757948770973,0.37288776,114610.0,114600.0,1.55177776]
[1757948771176,0.37288776,114610.0,114600.0,0.39723]
[1757948771372,0.73233552,114610.0,114600.0,0.02347]
[1757948771973,0.75425102,114610.0,114600.0,0.02347]
[1757948772577,0.40874326,114610.0,114600.0,0.02347]
[1757948772972,0.40874326,114610.0,114600.0,0.03643]
[1757948774982,0.40874326,114610.0,114600.0,0.02347]
[1757948775280,0.40874326,114610.0,114600.0,0.39723]
[1757948775483,0.39480326,114610.0,114600.0,0.39723]
[1757948776383,0.40874326,114610.0,114600.0,0.39723]
[1757948776580,0.0269155,114610.0,114600.0,0.83273776]
[1757948776775,0.37242326,114610.0,114600.0,1.04273776]
[1757948777680,0.37242326,114610.0,114600.0,0.76273776]
[1757948777888,0.39480326,114610.0,114600.0,0.76273776]
[1757948778681,0.37288776,114610.0,114600.0,0.76273776]
[1757948778985,0.35050776,114610.0,114600.0,0.91273776]
[1757948779386,0.37288776,114610.0,114600.0,0.91273776]
[1757948780182,0.35050776,114610.0,114600.0,0.91273776]
[1757948780887,0.37288776,114610.0,114600.0,0.91273776]
[1757948782787,0.38682776,114610.0,114600.0,0.39723]
[1757948782989,0.38682776,114610.0,114600.0,1.19223]
[1757948783293,0.40876799,114610.0,114600.0,0.38427]
[1757948783495,0.75427575,114610.0,114600.0,1.19239]
[1757948783697,0.75427575,114610.0,114600.0,0.38427]
[1757948786194,0.75427575,114610.0,114600.0,0.001]
[1757948786494,0.75427575,114610.0,114600.0,0.02322]
[1757948787493,1.00427575,114610.0,114600.0,0.02322]
[1757948790195,0.65876799,114610.0,114600.0,0.02322]
[1757948790791,1.00427575,114610.0,114600.0,0.02322]
[1757948794100,1.81091575,114610.0,114600.0,0.02322]
[1757948794398,1.00427575,114610.0,114600.0,0.02322]
[1757948794700,1.46520799,114610.0,114600.0,0.03625]
[1757948795794,1.46520799,114610.0,114600.0,0.02322]
[1757948796500,1.81071575,114610.0,114600.0,0.02322]
[1757948798701,1.81067575,114610.0,114600.0,0.02322]
[1757948799387,1.56067575,114610.0,114600.0,0.02322]
[1757948800402,1.56067575,114610.0,114600.0,0.001]
[1757948801102,1.92147575,114610.0,114600.0,0.001]
[1757948801400,2.17147575,114610.0,114600.0,0.001]
[1757948801803,2.20271465,114610.0,114600.0,0.001]
[1757948802194,2.17147575,114610.0,114600.0,0.001]
[1757948805500,2.17151575,114610.0,114600.0,0.02322]
[1757948805705,2.17151575,114610.0,114600.0,0.001]
[1757948806700,1.36507575,114610.0,114600.0,0.001]
[1757948806907,2.17151575,114610.0,114600.0,0.001]
[1757948808711,0.03542,114600.0,114590.0,0.0001]
[1757948809009,0.03542,114590.0,114580.0,0.38312]
[1757948809209,0.38092776,114590.0,114580.0,0.38302]
[1757948810504,0.37992776,114590.0,114580.0,0.38302]
[1757948811112,0.37992776,114590.0,114580.0,0.39605]
[1757948811304,0.38092776,114590.0,114580.0,0.38302]
[1757948811504,0.38092776,114590.0,114580.0,0.39605]
[1757948811712,0.38985142,114590.0,114580.0,0.39605]
[1757948813109,0.04434366,114590.0,114580.0,0.39605]
[1757948813309,0.38985142,114590.0,114580.0,0.39605]
[1757948814416,0.36860776,114590.0,114580.0,0.39605]
[1757948815310,0.37715528,114590.0,114580.0,0.39605]
[1757948816317,0.37715528,114590.0,114580.0,0.74155776]
[1757948816619,0.34650776,114590.0,114580.0,0.99155776]
[1757948816815,0.02297552,114590.0,114580.0,0.99155776]
[1757948817017,0.36872776,114590.0,114580.0,0.99155776]
[1757948817318,0.39069781,114590.0,114580.0,0.99155776]
[1757948817620,0.36872776,114590.0,114580.0,0.64605]
[1757948817807,0.36872776,114590.0,114580.0,0.99155776]
[1757948818218,0.36872776,114590.0,114580.0,0.64605]
[1757948818414,0.02322,114590.0,114580.0,0.99155776]
[1757948818616,0.36872776,114590.0,114580.0,0.99155776]
[1757948818818,0.36872776,114590.0,114580.0,0.64605]
[1757948819019,0.36872776,114590.0,114580.0,0.99155776]
[1757948819220,0.36872776,114590.0,114580.0,0.64605]
[1757948819416,0.001,114590.0,114580.0,0.99155776]
[1757948819617,0.001,114590.0,114580.0,1.33706552]
[1757948819920,0.34550776,114590.0,114580.0,1.33706552]
[1757948820321,0.02232,114600.0,114590.0,0.05511618]
[1757948820515,0.04419476,114600.0,114590.0,1.56786394]
[1757948820714,0.36748252,114600.0,114590.0,1.56786394]
[1757948821510,1.18810776,114620.0,114610.0,0.0349]
[1757948821713,1.55559116,114620.0,114610.0,0.0349]
[1757948822117,1.55559116,114620.0,114610.0,0.02216]
[1757948822510,1.55559116,114620.0,114600.0,0.3609]
[1757948822720,0.38078776,114610.0,114600.0,0.38306]
[1757948822924,0.4027634,114610.0,114600.0,0.3957]
[1757948823227,0.4114551,114610.0,114600.0,0.3957]
[1757948823927,0.41046018,114610.0,114600.0,0.3957]
[1757948824516,0.38970848,114610.0,114600.0,0.3957]
[1757948824924,0.04719564,114610.0,114600.0,0.3967]
[1757948825119,0.39270848,114610.0,114600.0,0.3967]
[1757948825825,0.39470848,114610.0,114600.0,0.3967]
[1757948826516,0.40345332,114610.0,114600.0,0.3967]
[1757948827724,0.39470848,114610.0,114600.0,0.3967]
[1757948827925,0.37273284,114610.0,114600.0,0.3967]
[1757948828618,0.02722,114610.0,114600.0,0.3967]
[1757948828826,0.005,114610.0,114600.0,0.74221284]
[1757948830126,0.02722,114610.0,114600.0,0.74221284]
[1757948830315,0.005,114610.0,114600.0,0.74221284]
[1757948830719,0.02722,114610.0,114600.0,0.3967]
[1757948831021,0.005,114610.0,114600.0,0.99221284]
[1757948831522,0.02722,114610.0,114600.0,0.6467]
[1757948831728,0.02722,114610.0,114600.0,1.45302]
[1757948832026,0.02722,114610.0,114600.0,1.20302]
[1757948832225,0.37273284,114610.0,114600.0,1.20302]
[1757948832622,0.38579284,114610.0,114600.0,0.3967]
[1757948832821,0.38579284,114610.0,114600.0,0.38396]
[1757948834125,0.37273284,114610.0,114600.0,0.3967]
[1757948835929,0.005,114610.0,114600.0,0.3967]
[1757948836124,0.005,114610.0,114600.0,0.74221284]
[1757948836314,0.005,114610.0,114600.0,0.89221284]
[1757948836520,0.005,114610.0,114600.0,1.08221284]
[1757948836721,0.005,114610.0,114600.0,0.3967]
[1757948837032,0.02722,114610.0,114600.0,0.4667]
[1757948837227,0.005,114610.0,114600.0,0.4667]
[1757948837427,0.02722,114610.0,114600.0,0.4667]
[1757948838029,0.005,114610.0,114600.0,0.4667]
[1757948838627,0.02722,114610.0,114600.0,1.27298]
[1757948840930,0.02722,114610.0,114600.0,0.4667]
[1757948841135,0.02722,114610.0,114600.0,1.27294]
[1757948841333,0.02722,114610.0,114600.0,1.42294]
[1757948841635,0.005,114610.0,114600.0,2.45119478]
[1757948841837,0.005,114610.0,114600.0,2.01845284]
[1757948842329,0.02722,114610.0,114600.0,0.6167]
[1757948842534,0.37273284,114610.0,114600.0,1.21294]
[1757948842932,0.37273284,114610.0,114600.0,0.4067]
[1757948843128,0.37273284,114610.0,114600.0,1.21294]
[1757948843828,0.02722,114610.0,114600.0,1.21294]
[1757948846837,0.02722,114610.0,114600.0,0.4067]
[1757948847038,0.02722,114610.0,114600.0,0.3967]
[1757948847239,0.38666284,114610.0,114600.0,1.2029]
[1757948849138,0.38666284,114610.0,114600.0,0.3967]
[1757948849340,0.38666284,114610.0,114600.0,1.2029]
[1757948849847,0.02722,114610.0,114600.0,1.2029]
[1757948850040,0.37273284,114610.0,114600.0,1.2029]
[1757948850737,0.37273284,114610.0,114600.0,0.3967]
[1757948851044,0.37273284,114610.0,114600.0,1.20286]
[1757948857946,0.37273284,114610.0,114600.0,0.3967]
[1757948858143,0.37273284,114610.0,114600.0,1.20286]
[1757948859250,0.02722,114610.0,114600.0,1.20286]
[1757948859452,0.37273284,114610.0,114600.0,1.20286]
[1757948860954,0.37273284,114610.0,114600.0,1.20282]
[1757948861358,0.37273284,114610.0,114600.0,0.3967]
[1757948861555,0.37273284,114610.0,114600.0,1.20282]
[1757948863061,0.35051284,114610.0,114600.0,1.16792]
[1757948863963,0.35051284,114610.0,114600.0,0.3618]
[1757948864256,0.37239716,114610.0,114600.0,0.3618]
[1757948865252,0.02688432,114610.0,114600.0,0.3618]
[1757948865453,0.37239716,114610.0,114600.0,0.3618]
[1757948865759,0.02688432,114610.0,114600.0,0.3618]
[1757948865959,0.37239716,114610.0,114600.0,0.3618]
[1757948870458,0.02688432,114610.0,114600.0,0.3618]
[1757948870662,0.37239716,114610.0,114600.0,0.3618]
[1757948874367,0.02688432,114610.0,114600.0,0.3618]
[1757948874860,0.02688432,114610.0,114600.0,1.30282568]
[1757948874861,0.005,114610.0,114600.0,1.30282568]
[1757948875165,0.005,114610.0,114600.0,0.99425284]
[1757948875359,0.02624,114610.0,114600.0,0.99425284]
[1757948875557,0.02624,114610.0,114600.0,1.80029284]
[1757948875757,0.02624,114610.0,114600.0,0.74425284]
[1757948875958,0.38525284,114610.0,114600.0,1.20478]
[1757948876260,0.03974,114610.0,114600.0,1.19089]
[1757948877957,0.02624,114610.0,114600.0,1.20434]
[1757948878360,0.02624,114610.0,114600.0,1.54985284]
[1757948879767,0.02624,114610.0,114600.0,0.74381284]
[1757948879962,0.02624,114610.0,114600.0,1.54981284]
[1757948881067,0.02624,114610.0,114600.0,0.74381284]
[1757948881270,0.02624,114610.0,114600.0,1.54977284]
[1757948883265,0.02624,114610.0,114600.0,0.74381284]
[1757948883467,0.38525284,114610.0,114600.0,1.19077]
[1757948884265,0.37175284,114610.0,114600.0,1.20422]
[1757948884666,0.37175284,114610.0,114600.0,0.3983]
[1757948884869,0.38525284,114610.0,114600.0,0.3983]
[1757948885071,0.38525284,114610.0,114600.0,0.38485]
[1757948885270,0.03974,114610.0,114600.0,1.19077]
[1757948885667,0.38525284,114610.0,114600.0,1.19077]
[1757948885968,0.38522486,114610.0,114600.0,1.53625486]
[1757948886171,0.03974,114610.0,114600.0,1.53625486]
[1757948886373,0.38522486,114610.0,114600.0,1.53625486]
[1757948887075,0.38522486,114610.0,114600.0,1.53621486]
[1757948888175,0.38522486,114610.0,114600.0,1.19073]
[1757948888369,0.38522486,114610.0,114600.0,1.53621486]
[1757948888570,0.38522486,114610.0,114600.0,0.73033486]
[1757948888877,0.03974,114610.0,114600.0,1.54966486]
[1757948889175,0.37172486,114610.0,114600.0,0.74378486]
[1757948889377,0.37172486,114610.0,114600.0,1.54966486]
[1757948889581,0.005,114610.0,114600.0,1.89514972]
[1757948892175,0.005,114610.0,114600.0,2.57237962]
[1757948893675,0.05426277,114650.0,114640.0,0.02217]
[1757948893875,0.42165163,114650.0,114640.0,0.38297]
[1757948894479,0.43031189,114650.0,114640.0,0.38297]
[1757948894778,0.03645,114640.0,114630.0,0.3609]
[1757948894981,0.03645,114640.0,114620.0,0.3608]
[1757948894982,0.03645,114630.0,114620.0,0.38307]
[1757948895175,0.38193486,114630.0,114620.0,0.38297]
[1757948895574,0.72741972,114630.0,114620.0,0.3608]
[1757948895775,0.99931117,114630.0,114620.0,0.3608]
[1757948897283,0.74931117,114630.0,114620.0,0.3608]
[1757948897483,0.40382631,114630.0,114620.0,0.38297]
[1757948897784,0.40682631,114630.0,114620.0,0.38297]
[1757948897983,0.75531117,114630.0,114620.0,0.3608]
[1757948898182,0.75531117,114630.0,114620.0,0.38297]
[1757948898380,0.40982631,114630.0,114620.0,0.38297]
[1757948898883,0.75531117,114630.0,114620.0,0.38297]
[1757948899685,0.40982631,114630.0,114620.0,0.3608]
[1757948900185,0.75531117,114630.0,114620.0,0.3608]
[1757948900585,0.75531117,114630.0,114620.0,0.38297]
[1757948901086,0.40982631,114630.0,114620.0,0.38297]
[1757948902985,0.40982631,114630.0,114620.0,0.3608]
[1757948903286,0.40982631,114630.0,114620.0,0.38297]
[1757948903887,0.75531117,114630.0,114620.0,0.3608]
[1757948906689,1.56099117,114630.0,114620.0,0.38297]
[1757948907187,1.56099117,114630.0,114620.0,0.3608]
[1757948907389,1.56099117,114630.0,114620.0,0.38404]
[1757948909087,1.56099117,114630.0,114620.0,0.3608]
[1757948909287,0.03361,114620.0,114610.0,0.3609]
[1757948909597,0.74647117,114620.0,114610.0,0.3608]
[1757948909786,0.74647117,114620.0,114610.0,0.38404]
[1757948911587,0.75147117,114620.0,114610.0,0.38504]
[1757948912186,0.75147117,114620.0,114610.0,0.001]
[1757948912392,1.70775603,114620.0,114610.0,0.001]
[1757948912594,2.54463493,114620.0,114610.0,0.001]
[1757948912994,2.61565169,114620.0,114610.0,0.001]
[1757948913999,0.03361,114610.0,114600.0,0.0001]
[1757948914198,0.03361,114600.0,114590.0,0.38111618]
[1757948914389,1.55211117,114600.0,114590.0,0.02021618]
[1757948914989,1.56065172,114600.0,114590.0,0.02021618]
[1757948915592,0.0126,114590.0,114580.0,0.0001]
[1757948915796,0.03361,114580.0,114570.0,0.38414]
[1757948915998,0.72457972,114580.0,114570.0,0.38404]
[1757948916196,0.37909486,114580.0,114570.0,0.38404]
[1757948917091,0.72457972,114580.0,114570.0,0.38404]
[1757948918395,0.72457972,114580.0,114570.0,0.38604]
[1757948919494,0.72557972,114580.0,114570.0,0.38604]
[1757948920602,0.03461,114580.0,114570.0,0.38604]
[1757948920805,0.72557972,114580.0,114570.0,0.38604]
[1757948921503,0.72557972,114580.0,114570.0,0.73152486]
[1757948922196,0.36749486,114580.0,114570.0,0.74524486]
[1757948922400,0.02201,114580.0,114570.0,0.99524486]
[1757948922607,0.36749486,114580.0,114570.0,0.99524486]
[1757948923803,0.02201,114580.0,114570.0,0.99524486]
[1757948924405,0.36749486,114580.0,114570.0,0.99524486]
[1757948924601,0.36749486,114580.0,114570.0,0.64976]
[1757948924803,0.36749486,114580.0,114570.0,0.99524486]
[1757948927103,0.38009486,114580.0,114570.0,0.99524486]
[1757948928010,0.38009486,114580.0,114570.0,0.63604]
[1757948928406,0.38009486,114580.0,114570.0,0.98152486]
[1757948928805,0.38009486,114580.0,114570.0,0.99538486]
[1757948930111,0.38009486,114580.0,114570.0,1.44196]
[1757948930310,0.38009486,114580.0,114570.0,1.78744486]
[1757948930610,0.38009486,114580.0,114570.0,1.80130486]
[1757948931612,0.38009486,114580.0,114570.0,1.45582]
[1757948931814,0.38009486,114580.0,114570.0,1.80130486]
[1757948933512,0.38009486,114580.0,114570.0,1.45582]
[1757948933713,0.38009486,114580.0,114570.0,0.99538486]
[1757948933913,0.38009486,114580.0,114570.0,1.80122486]
[1757948935115,0.38009486,114580.0,114570.0,0.99538486]
[1757948935315,0.38009486,114580.0,114570.0,1.80122486]
[1757948935612,0.38009486,114580.0,114570.0,0.99538486]
[1757948935915,0.38009486,114580.0,114570.0,1.80122486]
[1757948938010,0.38009486,114580.0,114570.0,0.3999]
[1757948938209,0.03623,114570.0,114530.0,0.42326929]
[1757948938410,0.03623,114540.0,114530.0,0.02212]
[1757948938712,0.40574338,114540.0,114530.0,0.36760486]
[1757948938916,0.65574338,114540.0,114530.0,0.36760486]
[1757948939112,0.03623,114520.0,114510.0,0.02212]
[1757948939314,0.03623,114520.0,114510.0,1.51892972]
[1757948939915,0.03623,114520.0,114510.0,1.77745491]
[1757948940114,0.01313,114530.0,114510.0,2.23533261]
[1757948940416,0.0212,114530.0,114520.0,0.71308972]
[1757948940618,0.0212,114530.0,114520.0,0.02502]
[1757948940915,0.44204157,114540.0,114520.0,0.71598972]
[1757948941114,0.46524157,114540.0,114530.0,0.36760486]
[1757948942510,0.46524157,114540.0,114530.0,1.17356486]
[1757948942711,0.48738383,114540.0,114530.0,0.82808]
[1757948942909,0.48738383,114540.0,114530.0,1.17356486]
[1757948944120,0.48738383,114540.0,114530.0,0.36760486]
[1757948944310,0.48738383,114540.0,114530.0,1.17360486]
[1757948944520,0.48838383,114540.0,114530.0,1.17360486]
[1757948945514,0.02314226,114540.0,114530.0,2.13956972]
[1757948945716,0.001,114540.0,114530.0,2.13956972]
[1757948946126,0.001,114540.0,114530.0,2.22685162]
[1757948946319,0.001,114540.0,114530.0,2.13956972]
[1757948946521,0.001,114540.0,114530.0,2.22685162]
[1757948947421,0.001,114540.0,114530.0,1.42085162]
[1757948947627,0.001,114540.0,114530.0,2.86407223]
[1757948947822,0.0001,114550.0,114540.0,0.0318]
[1757948948022,0.01313,114560.0,114540.0,1.66436224]
[1757948948219,0.03633,114560.0,114550.0,0.36784224]
[1757948948419,0.03633,114560.0,114550.0,1.17388224]
[1757948948420,0.03623,114560.0,114550.0,1.17388224]
[1757948948620,0.03623,114560.0,114550.0,0.36784224]
[1757948948920,0.03623,114560.0,114550.0,0.02212]
[1757948949226,0.99275224,114560.0,114550.0,0.02212]
[1757948949620,1.01487849,114560.0,114550.0,0.82812]
[1757948951227,1.01787849,114560.0,114550.0,0.82812]
[1757948951926,0.76987849,114560.0,114550.0,0.82812]
[1757948952127,0.42415625,114560.0,114550.0,0.82812]
[1757948952318,0.76987849,114560.0,114550.0,0.82812]
[1757948952730,0.38695224,114560.0,114550.0,0.8379]
[1757948952931,0.37392224,114560.0,114550.0,0.8379]
[1757948953122,0.0282,114560.0,114550.0,0.8379]
[1757948953322,0.0282,114560.0,114550.0,0.0319]
[1757948953523,0.37392224,114560.0,114550.0,0.0319]
[1757948953725,0.38695224,114560.0,114550.0,0.82812]
[1757948954119,0.38695224,114560.0,114550.0,0.02212]
[1757948954430,0.38695224,114560.0,114550.0,0.82812]
[1757948954431,0.40907613,114560.0,114550.0,0.82812]
[1757948954829,0.05032389,114560.0,114550.0,0.8379]
[1757948955029,0.39604613,114560.0,114550.0,0.8379]
[1757948956031,0.02712389,114560.0,114550.0,0.8379]
[1757948956330,0.005,114560.0,114550.0,0.8379]
[1757948956830,0.005,114560.0,114550.0,0.84653807]
[1757948957033,0.005,114560.0,114550.0,0.8379]
[1757948957432,0.0282,114560.0,114550.0,0.8379]
[1757948957638,0.0282,114560.0,114550.0,0.85790529]
[1757948957835,0.005,114560.0,114550.0,0.85790529]
[1757948958330,0.005,114560.0,114550.0,1.81442753]
[1757948959428,0.005,114560.0,114550.0,2.20034045]
[1757948959824,0.0001,114570.0,114560.0,0.1093791]
[1757948960127,0.70652224,114590.0,114570.0,0.0297]